bitfinex/quotes_SOLUSD_20251025
["timestamp","ask_amount","ask_price","bid_price","bid_amount"]
[1761432058439,3.4669499,194.35,194.34,5.14562107]
[1761432058750,3.4669499,194.35,194.33,5.14588586]
[1761432058944,5.14562107,194.36,194.33,5.80588586]
[1761432059141,3.46704518,194.35,194.33,5.80588586]
[1761432059348,5.14562107,194.36,194.34,0.66]
[1761432059540,3.46696353,194.35,194.34,3.20034524]
[1761432059741,3.46696353,194.35,194.34,7.68596631]
[1761432061847,14.34343874,194.35,194.34,2.54034524]
[1761432062256,26.06991395,194.35,194.34,2.54034524]
[1761432063259,26.06991395,194.35,194.29,22.88]
[1761432063429,15.05343874,194.34,194.3,2.54034524]
[1761432063633,3.46696353,194.33,194.3,3.23034524]
[1761432063857,10.87647521,194.31,194.3,3.23034524]
[1761432064245,10.87647521,194.33,194.3,3.23034524]
[1761432064557,10.87647521,194.31,194.3,3.23034524]
[1761432064759,10.87647521,194.33,194.3,3.23034524]
[1761432065057,10.87647521,194.31,194.3,3.23034524]
[1761432065258,15.76343874,194.34,194.3,3.23034524]
[1761432065259,10.87647521,194.33,194.3,3.23034524]
[1761432065459,3.46685789,194.32,194.31,0.69]
[1761432065960,10.87647521,194.31,194.3,7.68702563]
[1761432066256,10.87647521,194.33,194.3,5.83668039]
[1761432066560,0.71,194.34,194.3,5.83668039]
[1761432066861,14.34267696,194.33,194.3,5.83668039]
[1761432067061,10.87647521,194.33,194.3,5.83668039]
[1761432067254,10.87647521,194.33,194.29,5.14690284]
[1761432067255,4.17641057,194.32,194.29,5.14690284]
[1761432067554,0.71,194.32,194.29,5.14690284]
[1761432067855,13.41682045,194.33,194.29,5.83690284]
[1761432068043,3.46549115,194.32,194.29,5.83690284]
[1761432068241,14.12682045,194.33,194.29,5.83690284]
[1761432068560,3.46470856,194.32,194.29,5.83690284]
[1761432068762,14.12682045,194.33,194.29,5.83690284]
[1761432068947,3.46470964,194.32,194.29,5.83690284]
[1761432069149,14.12682045,194.33,194.29,5.83690284]
[1761432069347,13.41682045,194.31,194.25,38.02034524]
[1761432069647,3.46471317,194.3,194.26,0.69]
[1761432069847,10.87647521,194.28,194.26,0.69]
[1761432070252,10.87647521,194.3,194.26,5.8377058]
[1761432070647,10.87647521,194.28,194.27,0.69]
[1761432070859,0.71,194.3,194.27,0.69]
[1761432071073,10.87647521,194.28,194.27,0.69]
[1761432071841,0.71,194.3,194.27,0.69]
[1761432072076,10.87647521,194.28,194.27,0.69]
[1761432072869,11.58647521,194.3,194.27,0.69]
[1761432073074,10.87647521,194.29,194.27,0.69]
[1761432073363,0.71,194.29,194.22,25.56661075]
[1761432073554,6.71000884,194.28,194.24,0.69]
[1761432073867,3.25034524,194.28,194.24,0.69]
[1761432074043,10.87647521,194.27,194.24,0.69]
[1761432074575,10.87647521,194.27,194.24,5.83817726]
[1761432075066,10.87647521,194.27,194.25,0.69]
[1761432075657,11.58647521,194.27,194.24,5.14817726]
[1761432075856,11.58647521,194.27,194.24,5.83817726]
[1761432076745,10.87647521,194.27,194.24,5.83817726]
[1761432076943,10.87647521,194.27,194.25,0.69]
[1761432077965,10.87647521,194.27,194.26,2.54034524]
[1761432078167,14.33273776,194.32,194.26,2.54034524]
[1761432078344,10.87647521,194.3,194.28,2.54034524]
[1761432078759,10.87647521,194.3,194.28,3.23034524]
[1761432081163,14.3324088,194.3,194.28,3.23034524]
[1761432081474,10.87647521,194.31,194.28,3.23034524]
[1761432081652,11.52647521,194.31,194.28,0.69]
[1761432081859,25.85888401,194.31,194.28,0.69]
[1761432084170,25.20888401,194.31,194.28,3.23034524]
[1761432086655,25.20888401,194.31,194.28,2.31722585]
[1761432087252,25.85888401,194.31,194.28,2.31722585]
[1761432087562,25.20888401,194.31,194.29,0.66]
[1761432087955,10.87647521,194.31,194.28,2.28722585]
[1761432088165,5.14745754,194.3,194.24,5.14827018]
[1761432088373,5.14745754,194.3,194.28,1.62722585]
[1761432088873,10.87647521,194.29,194.28,2.28722585]
[1761432090481,10.87647521,194.31,194.28,2.28722585]
[1761432090656,10.87647521,194.31,194.3,1.62722585]
[1761432091075,10.87647521,194.31,194.29,2.28722585]
[1761432091280,14.98090704,194.32,194.28,2.28722585]
[1761432091483,5.14800514,194.31,194.28,2.28722585]
[1761432092981,5.14800514,194.31,194.29,0.66]
[1761432093367,5.14800514,194.31,194.29,2.28722585]
[1761432095465,5.79800514,194.31,194.28,1.62722585]
[1761432095666,10.87647521,194.29,194.27,1.62722585]
[1761432095867,10.87647521,194.29,194.25,0.66]
[1761432096064,10.87647521,194.29,194.26,1.62722585]
[1761432096065,22.40295042,194.29,194.26,1.62722585]
[1761432096490,22.40295042,194.29,194.26,2.28722585]
[1761432096878,3.45705923,194.28,194.26,2.28722585]
[1761432097189,22.40295042,194.29,194.26,2.28722585]
[1761432097482,22.40295042,194.29,194.26,7.43493733]
[1761432098166,3.45772391,194.28,194.26,7.43493733]
[1761432098482,22.40295042,194.29,194.26,7.43493733]
[1761432098680,3.45762837,194.28,194.26,7.43493733]
[1761432098857,22.40295042,194.29,194.26,7.43493733]
[1761432099064,3.45762892,194.28,194.26,7.43493733]
[1761432099272,22.40295042,194.29,194.26,7.43493733]
[1761432099863,21.75295042,194.29,194.26,7.43493733]
[1761432100882,21.75295042,194.29,194.27,1.62722585]
[1761432101190,10.87647521,194.3,194.27,7.43460971]
[1761432101382,23.74715066,194.3,194.28,2.28722585]
[1761432101589,10.87647521,194.3,194.28,2.28722585]
[1761432103397,10.87647521,194.3,194.28,7.43430986]
[1761432105779,10.87647521,194.32,194.29,2.28722585]
[1761432105973,10.87647521,194.32,194.31,1.62722585]
[1761432106198,27.20905535,194.32,194.31,2.28722585]
[1761432107276,14.3383799,194.32,194.31,2.28722585]
[1761432107476,10.87647521,194.34,194.31,20.29968017]
[1761432107671,10.87647521,194.34,194.33,1.62722585]
[1761432107894,3.46334153,194.34,194.33,1.62722585]
[1761432108199,3.46334153,194.34,194.33,2.28722585]
[1761432110304,10.87647521,194.35,194.34,5.14562107]
[1761432110496,14.33902286,194.35,194.34,6.77284692]
[1761432117929,11.07647521,194.37,194.34,7.46284692]
[1761432118122,11.07647521,194.37,194.36,1.62722585]
[1761432118313,27.40120047,194.37,194.36,1.62722585]
[1761432120805,27.40120047,194.37,194.36,2.33722585]
[1761432121340,27.40120047,194.37,194.36,7.48231743]
[1761432121516,11.07647521,194.37,194.36,7.48231743]
[1761432146052,11.07647521,194.37,194.33,23.94091705]
[1761432146053,15.18714438,194.37,194.33,6.77309255]
[1761432146226,10.87647521,194.35,194.33,5.1458667]
[1761432146655,11.53647521,194.35,194.33,6.77309255]
[1761432146847,11.53647521,194.36,194.34,1.62722585]
[1761432148158,11.53647521,194.36,194.34,6.77268071]
[1761432148763,11.53647521,194.36,194.34,7.68633945]
[1761432149054,10.87647521,194.36,194.35,3.23088459]
[1761432149245,11.07647521,194.37,194.35,3.23088459]
[1761432149440,11.07647521,194.37,194.36,2.54088459]
[1761432151143,11.07647521,194.37,194.36,8.37597617]
[1761432154162,11.07647521,194.37,194.36,7.68597617]
[1761432154565,11.07647521,194.37,194.36,5.14509158]
[1761432154790,11.07647521,194.37,194.36,7.68597617]
[1761432154958,11.07647521,194.37,194.36,5.14509158]
[1761432160082,11.07647521,194.37,194.36,5.83509158]
[1761432161290,11.07647521,194.37,194.36,5.14509158]
[1761432163295,14.54055191,194.37,194.36,5.14509158]
[1761432164679,15.20055191,194.37,194.35,5.14535631]
[1761432164862,11.73647521,194.37,194.35,5.14535631]
[1761432165195,11.07647521,194.37,194.35,5.14535631]
[1761432170263,0.2,194.37,194.36,3.20088459]
[1761432170468,11.07647521,194.37,194.36,3.20088459]
[1761432172186,14.54113406,194.37,194.36,3.20088459]
[1761432174193,14.54113406,194.37,194.36,8.34597617]
[1761432175586,11.07647521,194.37,194.36,8.34597617]
[1761432176578,11.07647521,194.37,194.36,43.82597617]
[1761432184367,14.54234501,194.37,194.36,43.82597617]
[1761432185981,11.07647521,194.37,194.36,43.82597617]
[1761432190204,14.5433464,194.37,194.36,43.82597617]
[1761432190605,11.07647521,194.37,194.36,43.82597617]
[1761432191403,14.54425032,194.37,194.36,43.82597617]
[1761432192103,15.25425032,194.37,194.36,2.54088459]
[1761432192293,15.25425032,194.37,194.35,7.68620288]
[1761432192607,15.05425032,194.36,194.35,7.68620288]
[1761432194006,14.34425032,194.36,194.35,7.68620288]
[1761432195897,10.87647521,194.35,194.34,7.6864983]
[1761432196102,15.05425032,194.35,194.34,7.6864983]
[1761432196993,15.05425032,194.35,194.34,5.14561371]
[1761432197195,15.05425032,194.35,194.34,7.6864983]
[1761432198003,14.34425032,194.35,194.34,7.6864983]
[1761432208718,14.34425032,194.35,194.34,6.77176381]
[1761432210419,14.34425032,194.35,194.33,35.48]
[1761432210617,10.87647521,194.33,194.31,35.48]
[1761432210915,10.87647521,194.34,194.31,37.1061501]
[1761432211098,3.4627184,194.33,194.31,37.7661501]
[1761432211301,10.87647521,194.34,194.31,37.7661501]
[1761432211718,3.46266335,194.33,194.31,37.7661501]
[1761432211926,10.87647521,194.34,194.31,37.7661501]
[1761432212217,3.46266335,194.33,194.31,7.43236207]
[1761432212519,11.54647521,194.34,194.31,7.43236207]
[1761432212720,3.4623315,194.33,194.31,7.43236207]
[1761432213016,11.54647521,194.34,194.31,6.77236207]
[1761432213218,3.46237923,194.33,194.31,6.77236207]
[1761432213423,11.54647521,194.34,194.31,6.77236207]
[1761432213733,3.46199097,194.33,194.31,6.77236207]
[1761432213904,11.54647521,194.34,194.31,6.77236207]
[1761432214224,25.82072553,194.32,194.31,6.77236207]
[1761432215221,25.82072553,194.32,194.31,7.43236207]
[1761432218904,25.82072553,194.32,194.31,6.77236207]
[1761432221629,25.82072553,194.32,194.31,7.43236207]
[1761432222725,25.82072553,194.32,194.31,6.77236207]
[1761432225334,25.82072553,194.32,194.31,5.14621197]
[1761432228312,25.82072553,194.32,194.31,6.77236207]
[1761432228516,25.82072553,194.32,194.31,7.43236207]
[1761432232452,29.28284571,194.32,194.31,7.43236207]
[1761432235124,29.28284571,194.32,194.31,6.77236207]
[1761432239226,29.28284571,194.32,194.31,7.49236207]
[1761432241354,25.82072553,194.32,194.31,7.49236207]
[1761432241723,29.28593828,194.32,194.31,7.49236207]
[1761432242241,25.82072553,194.32,194.31,7.49236207]
[1761432242445,29.28592155,194.32,194.31,7.49236207]
[1761432246460,14.34167123,194.32,194.31,7.49236207]
[1761432256942,14.34167123,194.32,194.31,5.86621197]
[1761432257148,14.34167123,194.32,194.31,7.49236207]
[1761432259267,14.34167123,194.32,194.31,5.86621197]
[1761432263174,14.34167123,194.32,194.31,5.14621197]
[1761432263869,14.34167123,194.32,194.31,5.81621197]
[1761432267969,14.34167123,194.32,194.31,7.44236207]
[1761432270687,14.34167123,194.32,194.31,5.81621197]
[1761432274393,29.78687935,194.32,194.31,5.81621197]
[1761432284299,29.78687935,194.32,194.31,5.14621197]
[1761432292094,29.78687935,194.32,194.31,5.85621197]
[1761432295901,29.78687935,194.32,194.31,8.39800518]
[1761432296241,10.87647521,194.32,194.31,5.85621197]
[1761432296511,14.34478331,194.32,194.31,43.87800518]
[1761432297018,14.34478331,194.32,194.31,54.75448039]
[1761432302420,10.87647521,194.32,194.31,54.75448039]
[1761432302993,14.34460348,194.32,194.31,54.75448039]
[1761432304920,14.34460348,194.32,194.31,43.87800518]
[1761432306622,14.34460348,194.32,194.31,59.08597541]
[1761432311999,10.87647521,194.32,194.31,59.08597541]
[1761432327740,10.87647521,194.32,194.31,5.14621197]
[1761432328037,15.01178556,194.32,194.31,40.62621197]
[1761432328239,11.54647521,194.32,194.31,40.62621197]
[1761432328819,11.54647521,194.32,194.31,5.14621197]
[1761432329220,15.01244141,194.32,194.31,5.14621197]
[1761432329623,11.54647521,194.32,194.31,5.14621197]
[1761432329819,15.01221429,194.32,194.31,5.14621197]
[1761432332555,30.45503723,194.32,194.31,5.14621197]
[1761432333543,30.45503723,194.32,194.3,5.14666756]
[1761432333756,4.13573908,194.31,194.3,5.14666756]
[1761432334516,15.01221429,194.31,194.29,40.6269011]
[1761432334717,15.01203173,194.3,194.26,5.14770078]
[1761432334943,10.87647521,194.28,194.26,40.62770078]
[1761432335424,0.67,194.28,194.26,40.62770078]
[1761432335625,12.50343188,194.31,194.26,40.62770078]
[1761432335838,10.87647521,194.28,194.26,40.62770078]
[1761432336235,11.54647521,194.27,194.26,40.62770078]
[1761432336827,11.54647521,194.27,194.26,5.14770078]
[1761432337930,10.87647521,194.26,194.25,5.14800514]
[1761432338330,0.67,194.27,194.25,5.14800514]
[1761432338552,10.87647521,194.26,194.25,5.14800514]
[1761432338770,10.87647521,194.26,194.24,35.48]
[1761432339059,10.87647521,194.24,194.22,1.62695667]
[1761432339224,10.87647521,194.24,194.22,37.10695667]
[1761432340345,11.54647521,194.25,194.22,42.25562404]
[1761432340548,10.87647521,194.24,194.22,42.25562404]
[1761432341143,10.87647521,194.24,194.23,1.62695667]
[1761432341339,10.87647521,194.25,194.23,2.28695667]
[1761432341548,10.87647521,194.25,194.24,1.62695667]
[1761432346160,10.87647521,194.25,194.23,5.80835671]
[1761432346360,10.87647521,194.25,194.23,6.77531338]
[1761432346753,10.87647521,194.25,194.23,7.43531338]
[1761432348254,10.87647521,194.25,194.24,1.62695667]
[1761432349866,10.87647521,194.25,194.24,7.43522685]
[1761432350074,10.87647521,194.29,194.24,7.43522685]
[1761432350267,26.04287171,194.29,194.28,1.62695667]
[1761432350667,26.70287171,194.29,194.27,1.62695667]
[1761432352370,26.04287171,194.29,194.27,1.62695667]
[1761432361473,26.04287171,194.29,194.27,6.77437377]
[1761432361686,26.04287171,194.29,194.27,7.48437377]
[1761432362088,26.04287171,194.29,194.27,2.33695667]
[1761432363474,26.04287171,194.29,194.27,7.4844096]
[1761432363810,10.87647521,194.3,194.28,0.71]
[1761432363988,26.32486471,194.3,194.28,0.71]
[1761432364765,10.87647521,194.32,194.29,1.62695667]
[1761432364966,14.33240149,194.32,194.29,1.62695667]
[1761432365265,10.87647521,194.3,194.29,2.33695667]
[1761432366277,0.66,194.32,194.29,2.33695667]
[1761432366764,31.46996319,194.33,194.29,2.33695667]
[1761432367079,3.45723779,194.32,194.29,2.33695667]
[1761432367270,32.12996319,194.33,194.29,2.33695667]
[1761432367471,3.45789843,194.32,194.29,2.33695667]
[1761432367671,32.12996319,194.33,194.29,2.33695667]
[1761432367872,3.45794612,194.32,194.29,2.33695667]
[1761432368078,32.12996319,194.33,194.29,2.33695667]
[1761432368274,3.45794612,194.32,194.29,2.33695667]
[1761432368483,32.12996319,194.33,194.29,2.33695667]
[1761432368685,3.45867127,194.32,194.31,1.62695667]
[1761432369080,3.45867127,194.32,194.31,2.33695667]
[1761432369373,10.87647521,194.33,194.31,2.33695667]
[1761432369570,10.87647521,194.33,194.32,1.62695667]
[1761432369894,14.33590258,194.33,194.32,1.62695667]
[1761432370883,14.33590258,194.33,194.31,2.33695667]
[1761432371083,3.45942737,194.32,194.31,2.33695667]
[1761432372181,3.45942737,194.32,194.3,6.77359578]
[1761432372378,14.33881205,194.31,194.3,7.48359578]
[1761432375889,14.33881205,194.31,194.3,5.85663911]
[1761432376200,14.33881205,194.31,194.3,7.48359578]
[1761432377581,10.87647521,194.3,194.28,6.77394407]
[1761432377798,10.87647521,194.3,194.26,35.48]
[1761432377799,10.87647521,194.28,194.26,1.62695667]
[1761432378102,10.87647521,194.28,194.26,17.07296001]
[1761432378303,0.66,194.3,194.26,16.15600334]
[1761432378606,10.87647521,194.28,194.26,16.15600334]
[1761432378900,0.66,194.3,194.26,16.15600334]
[1761432379099,10.87647521,194.28,194.26,21.30370187]
[1761432379282,10.87647521,194.28,194.26,22.93065854]
[1761432381580,0.66,194.3,194.26,22.93065854]
[1761432381777,10.87647521,194.28,194.26,22.93065854]
[1761432382297,11.58647521,194.27,194.26,20.59370187]
[1761432382611,10.87647521,194.27,194.26,20.59370187]
[1761432384190,10.87647521,194.27,194.26,22.22065854]
[1761432390102,10.87647521,194.27,194.26,22.87065854]
[1761432392397,10.87647521,194.27,194.26,20.59370187]
[1761432392711,15.05205388,194.27,194.26,5.14769853]
[1761432393113,14.34205388,194.27,194.26,5.14769853]
[1761432394619,10.87647521,194.26,194.24,3.19329939]
[1761432394793,10.87647521,194.27,194.24,8.34153548]
[1761432395091,3.46452247,194.26,194.24,8.34153548]
[1761432395293,10.87647521,194.26,194.24,7.69153548]
[1761432398115,10.87647521,194.27,194.25,2.54329939]
[1761432398301,10.87647521,194.26,194.25,2.54329939]
[1761432398503,14.34134613,194.26,194.25,2.54329939]
[1761432401496,10.87647521,194.25,194.24,8.34153548]
[1761432402386,10.87647521,194.27,194.24,8.34153548]
[1761432402595,3.46334235,194.26,194.24,8.34153548]
[1761432402794,10.87647521,194.27,194.24,8.34153548]
[1761432402997,3.46331231,194.26,194.24,8.34153548]
[1761432403195,10.87647521,194.27,194.24,8.34153548]
[1761432403497,3.46325808,194.26,194.24,8.34153548]
[1761432403794,10.87647521,194.27,194.24,8.34153548]
[1761432404516,3.46316791,194.26,194.25,2.54329939]
[1761432404814,10.87647521,194.27,194.25,2.54329939]
[1761432405698,3.46326078,194.26,194.25,2.54329939]
[1761432406915,3.46326078,194.26,194.25,7.69130453]
[1761432407100,10.87647521,194.27,194.25,7.69130453]
[1761432407419,10.87647521,194.27,194.25,8.34130453]
[1761432407800,10.87647521,194.27,194.26,2.54329939]
[1761432408111,14.3395319,194.27,194.26,2.54329939]
[1761432411124,14.3395319,194.27,194.26,3.26329939]
[1761432411418,14.3395319,194.27,194.26,0.72]
[1761432411616,14.3395319,194.27,194.25,7.69130453]
[1761432411808,10.87647521,194.28,194.25,8.41130453]
[1761432412008,10.87647521,194.26,194.25,7.69130453]
[1761432412724,10.87647521,194.28,194.25,8.41130453]
[1761432412922,10.87647521,194.28,194.26,0.72]
[1761432413224,14.33986059,194.27,194.26,0.72]
[1761432415921,14.33986059,194.27,194.26,5.86774014]
[1761432416124,14.33986059,194.27,194.26,8.41103953]
[1761432418510,14.33986059,194.27,194.26,43.89103953]
[1761432419924,10.87647521,194.27,194.26,43.89103953]
[1761432421833,10.87647521,194.27,194.26,8.41103953]
[1761432422035,10.87647521,194.27,194.26,43.89103953]
[1761432429029,10.87647521,194.26,194.25,5.1480049]
[1761432429240,10.87647521,194.27,194.25,43.17130429]
[1761432433226,10.87647521,194.27,194.26,2.54329939]
[1761432433426,14.3427638,194.27,194.26,2.54329939]
[1761432434044,15.0127638,194.27,194.24,35.48]
[1761432434246,4.13628859,194.26,194.24,35.48]
[1761432434454,14.3427638,194.25,194.24,35.48]
[1761432435541,14.3427638,194.25,194.24,40.62827018]
[1761432436135,14.3427638,194.25,194.24,5.14827018]
[1761432436437,14.3427638,194.25,194.24,7.69156957]
[1761432437724,10.87647521,194.25,194.24,7.69156957]
[1761432438742,14.34345248,194.25,194.24,7.69156957]
[1761432438921,10.87647521,194.25,194.24,7.69156957]
[1761432439649,14.34336471,194.25,194.24,7.69156957]
[1761432444451,10.87647521,194.25,194.24,7.69156957]
[1761432446151,10.87647521,194.25,194.24,8.38156957]
[1761432446447,10.87647521,194.25,194.24,7.69156957]
[1761432452749,10.87647521,194.25,194.24,7.46608489]
[1761432453056,10.87647521,194.25,194.24,6.77608489]
[1761432458152,10.87647521,194.25,194.24,7.46608489]
[1761432471971,10.87647521,194.25,194.24,5.83827018]
[1761432472174,10.87647521,194.25,194.24,7.46608489]
[1761432489491,10.87647521,194.28,194.24,7.46608489]
[1761432489793,10.87647521,194.26,194.25,41.31777662]
[1761432490088,10.87647521,194.28,194.25,40.62777662]
[1761432490391,10.87647521,194.26,194.25,40.62777662]
[1761432490577,14.34501171,194.26,194.25,40.62777662]
[1761432490890,14.34501171,194.26,194.25,42.25559133]
[1761432492488,0.7,194.28,194.25,42.25559133]
[1761432492690,3.46888499,194.27,194.26,1.62781471]
[1761432501195,3.46888499,194.27,194.26,6.77555485]
[1761432501402,11.57647521,194.29,194.26,6.77555485]
[1761432501591,11.57647521,194.29,194.27,37.10781471]
[1761432501592,14.34681544,194.28,194.27,37.10781471]
[1761432502105,14.34681544,194.28,194.27,35.48]
[1761432506414,15.06681544,194.28,194.27,35.48]
[1761432512506,14.34681544,194.28,194.27,35.48]
[1761432513518,15.06681544,194.28,194.27,35.48]
[1761432515513,15.06681544,194.28,194.27,38.02286217]
[1761432516097,14.34681544,194.28,194.27,38.02286217]
[1761432518018,14.34681544,194.28,194.27,43.86033733]
[1761432518516,3.47034023,194.28,194.27,43.86033733]
[1761432518718,10.87647521,194.32,194.27,59.2718874]
[1761432518903,15.44520812,194.35,194.31,2.54286217]
[1761432519220,11.07647521,194.37,194.34,2.54286217]
[1761432519520,3.46539016,194.36,194.34,35.48]
[1761432519821,10.87647521,194.36,194.35,5.83535631]
[1761432519998,14.34178611,194.36,194.35,5.83535631]
[1761432520612,14.34178611,194.36,194.35,8.37821848]
[1761432521299,10.87647521,194.36,194.35,8.37821848]
[1761432525123,10.87647521,194.36,194.35,7.68821848]
[1761432525416,10.87647521,194.36,194.35,8.37821848]
[1761432529107,10.87647521,194.36,194.35,7.68821848]
[1761432529310,10.87647521,194.36,194.35,2.54286217]
[1761432533013,10.87647521,194.36,194.35,7.68821848]
[1761432541245,10.87647521,194.36,194.35,8.37821848]
[1761432542027,10.87647521,194.36,194.35,7.68821848]
[1761432543342,11.53647521,194.36,194.35,2.54286217]
[1761432543540,11.53647521,194.36,194.34,43.14843252]
[1761432543731,0.66,194.35,194.34,43.14843252]
[1761432543947,11.53647521,194.36,194.34,43.14843252]
[1761432544139,10.87647521,194.36,194.34,43.14843252]
[1761432544340,10.87647521,194.36,194.34,43.83843252]
[1761432545041,10.87647521,194.36,194.34,43.14843252]
[1761432546543,10.87647521,194.36,194.35,2.54286217]
[1761432546741,25.40477817,194.36,194.35,2.54286217]
[1761432550252,25.40477817,194.36,194.35,7.68821848]
[1761432550453,10.87647521,194.36,194.35,8.37821848]
[1761432552864,11.07647521,194.37,194.35,5.83535631]
[1761432553067,11.07647521,194.37,194.36,36.15]
[1761432553359,11.07647521,194.37,194.36,38.69286217]
[1761432553963,0.2,194.37,194.36,43.83795375]
[1761432554255,0.2,194.37,194.36,41.29509158]
[1761432554461,0.2,194.37,194.36,43.83795375]
[1761432558460,0.2,194.37,194.36,45.89614922]
[1761432565258,0.2,194.37,194.36,45.87614922]
[1761432568669,11.07647521,194.37,194.36,43.12795375]
[1761432572386,0.2,194.37,194.36,43.80795375]
[1761432572685,0.2,194.37,194.36,54.88442896]
[1761432574687,0.2,194.37,194.36,53.9665404]
[1761432575182,0.2,194.37,194.36,42.89006519]
[1761432582087,0.2,194.37,194.36,42.21006519]
[1761432582300,0.2,194.37,194.36,42.89006519]
[1761432614322,0.2,194.39,194.36,42.89006519]
[1761432614623,0.2,194.41,194.38,26.12994722]
[1761432614927,0.2,194.41,194.4,3.24994722]
[1761432615127,0.2,194.41,194.4,9.06398014]
[1761432615712,0.2,194.41,194.4,7.43900653]
[1761432619934,0.2,194.41,194.4,9.06398014]
[1761432620324,0.2,194.46,194.43,22.88]
[1761432620531,0.2,194.46,194.45,1.62497361]
[1761432620921,0.2,194.46,194.45,7.46768381]
[1761432622530,0.2,194.46,194.45,42.24768381]
[1761432628625,0.2,194.46,194.45,42.94768381]
[1761432636727,0.2,194.46,194.45,43.85895857]
[1761432637332,1e-08,194.46,194.45,43.85895857]
[1761432637635,0.2,194.49,194.48,22.88]
[1761432637827,0.2,194.49,194.48,60.89624837]
[1761432638037,0.2,194.49,194.48,61.59624837]
[1761432638349,0.2,194.49,194.48,60.89624837]
[1761432638851,0.2,194.49,194.48,66.03816527]
[1761432639554,0.2,194.49,194.48,66.73816527]
[1761432646554,0.2,194.49,194.48,64.2019169]
[1761432646742,0.2,194.49,194.48,66.73816527]
[1761432660869,0.2,194.51,194.48,79.59295753]
[1761432661070,0.2,194.51,194.5,2.53624837]
[1761432661261,0.2,194.51,194.5,37.99624837]
[1761432661568,0.2,194.51,194.5,36.14]
[1761432661748,0.2,194.51,194.5,38.67624837]
[1761432661944,0.2,194.51,194.5,43.81763654]
[1761432663270,0.2,194.53,194.52,22.88]
[1761432663463,0.2,194.55,194.52,22.88]
[1761432663464,0.2,194.55,194.52,63.41249674]
[1761432663664,0.2,194.55,194.54,2.53624837]
[1761432663866,0.2,194.55,194.54,37.99624837]
[1761432664057,0.2,194.55,194.54,38.67624837]
[1761432665574,0.2,194.55,194.54,43.8165794]
[1761432669480,0.2,194.57,194.54,43.8165794]
[1761432669666,11.07647521,194.61,194.56,30.556051]
[1761432669866,11.07647521,194.61,194.6,2.53624837]
[1761432670069,11.07647521,194.61,194.6,37.99624837]
[1761432670673,11.07647521,194.61,194.6,35.46]
[1761432670873,11.07647521,194.61,194.6,37.99624837]
[1761432671662,11.07647521,194.61,194.6,43.13499451]
[1761432674065,0.2,194.61,194.6,43.13499451]
[1761432674276,0.9,194.61,194.6,43.13499451]
[1761432675775,0.9,194.61,194.58,12.84810082]
[1761432675970,0.7,194.6,194.59,35.46]
[1761432676280,0.7,194.6,194.59,37.99624837]
[1761432676472,11.57647521,194.6,194.59,37.99624837]
[1761432676880,11.57647521,194.6,194.59,35.46]
[1761432677275,11.57647521,194.6,194.59,37.99624837]
[1761432677786,11.57647521,194.6,194.59,43.13525859]
[1761432677985,10.87647521,194.59,194.39,25.72075154]
[1761432678187,10.87647521,194.52,194.47,2.53624837]
[1761432678370,10.87647521,194.52,194.48,14.1]
[1761432678568,0.7,194.51,194.48,14.1]
[1761432678968,0.7,194.51,194.48,16.63624837]
[1761432679172,0.7,194.51,194.49,2.53624837]
[1761432679173,10.87647521,194.5,194.49,2.53624837]
[1761432679372,11.57647521,194.5,194.49,2.53624837]
[1761432680274,10.87647521,194.55,194.49,7.67790089]
[1761432680476,0.68,194.52,194.5,2.53624837]
[1761432681893,0.68,194.52,194.49,2.53624837]
[1761432682675,0.68,194.52,194.49,7.67785331]
[1761432683893,0.68,194.52,194.49,5.14160494]
[1761432684097,0.68,194.52,194.49,7.67785331]
[1761432685283,10.87647521,194.51,194.49,7.67785331]
[1761432685488,10.87647521,194.51,194.5,2.53624837]
[1761432686610,10.87647521,194.51,194.5,7.67763654]
[1761432686984,0.68,194.51,194.5,7.67763654]
[1761432687302,0.68,194.51,194.5,5.14138817]
[1761432687500,0.68,194.51,194.48,14.1]
[1761432687501,0.68,194.51,194.48,21.77791274]
[1761432687900,10.87647521,194.5,194.48,21.77791274]
[1761432688383,11.55647521,194.49,194.48,21.77791274]
[1761432689400,10.87647521,194.49,194.48,21.77791274]
[1761432693904,10.87647521,194.52,194.48,35.352705]
[1761432694213,10.87647521,194.52,194.51,2.53624837]
[1761432694506,0.68,194.52,194.51,2.53624837]
[1761432695686,0.68,194.52,194.51,7.67737221]
[1761432696812,0.68,194.54,194.51,1.62323892]
[1761432697108,10.87647521,194.52,194.51,1.62323892]
[1761432698086,3.45172171,194.54,194.51,6.76436276]
[1761432698290,10.87647521,194.57,194.53,1.62323892]
[1761432698488,10.87647521,194.57,194.52,36.24]
[1761432698489,10.87647521,194.57,194.55,1.62323892]
[1761432698713,0.68,194.57,194.55,1.62323892]
[1761432698901,10.87647521,194.56,194.53,0.72]